[Event "Titled Tuesday Blitz July 11 Late 2023"]
[White "Yurasova, Daria"]
[Black "Nasuta, Grzegorz"]
[WhiteFideId "34146919"]
[BlackFideId "1141686"]
[WhiteElo "2479"]
[BlackElo "2730"]
[Result "1-0"]
[Round "5"]
[TimeControl "180+2"]
[Date "2023.07.11"]
[WhiteClock "0:00:54"]
[BlackClock "0:00:00"]
[Board "69"]

1. d4 {[%clk 0:03:00]}  d5 {[%clk 0:02:59]} 2. Nf3 {[%clk 0:02:57]}  Nf6 {[%clk 0:02:57]} 3. Bf4 {[%clk 0:02:55]}  c5 {[%clk 0:02:57]} 4. e3 {[%clk 0:02:55]}  Nc6 {[%clk 0:02:57]} 5. Nbd2 {[%clk 0:02:54]}  Nh5 {[%clk 0:02:57]} 6. Bg3 {[%clk 0:02:54]}  Nxg3 {[%clk 0:02:40]} 7. hxg3 {[%clk 0:02:54]}  e6 {[%clk 0:02:30]} 8. c3 {[%clk 0:02:54]}  Be7 {[%clk 0:02:28]} 9. Bd3 {[%clk 0:02:54]}  g6 {[%clk 0:02:27]} 10. O-O {[%clk 0:02:53]}  h5 {[%clk 0:02:26]} 11. Re1 {[%clk 0:02:48]}  O-O {[%clk 0:02:19]} 12. Rc1 {[%clk 0:02:43]}  b6 {[%clk 0:02:16]} 13. Bb1 {[%clk 0:02:44]}  Bb7 {[%clk 0:02:15]} 14. Qe2 {[%clk 0:02:26]}  Bf6 {[%clk 0:02:09]} 15. Rcd1 {[%clk 0:02:26]}  Re8 {[%clk 0:02:08]} 16. e4 {[%clk 0:02:23]}  cxd4 {[%clk 0:02:08]} 17. exd5 {[%clk 0:02:12]}  Qxd5 {[%clk 0:01:59]} 18. Be4 {[%clk 0:02:11]}  Qxa2 {[%clk 0:01:58]} 19. Qb5 {[%clk 0:01:52]}  dxc3 {[%clk 0:00:36]} 20. bxc3 {[%clk 0:01:51]}  Bxc3 {[%clk 0:00:30]} 21. Bxc6 {[%clk 0:01:44]}  Bxc6 {[%clk 0:00:31]} 22. Qxc6 {[%clk 0:01:45]}  Rac8 {[%clk 0:00:26]} 23. Qb7 {[%clk 0:01:41]}  Rb8 {[%clk 0:00:26]} 24. Qe4 {[%clk 0:01:38]}  Red8 {[%clk 0:00:22]} 25. Qf4 {[%clk 0:01:33]}  b5 {[%clk 0:00:13]} 26. Ng5 {[%clk 0:01:23]}  Rb7 {[%clk 0:00:13]} 27. Nge4 {[%clk 0:01:21]}  Bg7 {[%clk 0:00:11]} 28. Nf3 {[%clk 0:01:17]}  Rbd7 {[%clk 0:00:09]} 29. Rxd7 {[%clk 0:01:11]}  Rxd7 {[%clk 0:00:10]} 30. Rc1 {[%clk 0:01:06]}  Rd8 {[%clk 0:00:04]} 31. Nfg5 {[%clk 0:01:05]}  e5 {[%clk 0:00:02]} 32. Qf3 {[%clk 0:00:58]}  b4 {[%clk 0:00:02]} 33. Rc7 {[%clk 0:00:56]}  Rf8 {[%clk 0:00:00]} 34. Rb7 {[%clk 0:00:54]} 1-0


[Site "https://www.chess.com"]

[Event "Titled Tuesday Blitz July 11 Late 2023"]
[White "Karas, Marek"]
[Black "caropawn10"]
[WhiteFideId "14928558"]
[WhiteElo "2474"]
[BlackElo "2700"]
[Result "0-1"]
[Round "5"]
[TimeControl "180+2"]
[Date "2023.07.11"]
[WhiteClock "0:00:19"]
[BlackClock "0:00:49"]
[Board "70"]

1. h4 {[%clk 0:03:00]}  d5 {[%clk 0:02:57]} 2. d4 {[%clk 0:03:00]}  Nf6 {[%clk 0:02:54]} 3. Bf4 {[%clk 0:02:59]}  Bf5 {[%clk 0:02:52]} 4. e3 {[%clk 0:02:57]}  c5 {[%clk 0:02:49]} 5. c3 {[%clk 0:02:53]}  Nc6 {[%clk 0:02:48]} 6. Nf3 {[%clk 0:02:47]}  Qb6 {[%clk 0:02:48]} 7. Qb3 {[%clk 0:02:46]}  c4 {[%clk 0:02:43]} 8. Qxb6 {[%clk 0:02:46]}  axb6 {[%clk 0:02:44]} 9. Na3 {[%clk 0:02:39]}  e6 {[%clk 0:02:28]} 10. Nb5 {[%clk 0:02:38]}  Kd7 {[%clk 0:02:27]} 11. Be2 {[%clk 0:02:36]}  h6 {[%clk 0:02:24]} 12. O-O {[%clk 0:02:32]}  Ne4 {[%clk 0:02:24]} 13. b3 {[%clk 0:02:22]}  cxb3 {[%clk 0:02:09]} 14. axb3 {[%clk 0:02:23]}  Be7 {[%clk 0:02:10]} 15. c4 {[%clk 0:02:07]}  g5 {[%clk 0:02:05]} 16. hxg5 {[%clk 0:02:06]}  hxg5 {[%clk 0:02:06]} 17. Ne5+ {[%clk 0:02:01]}  Nxe5 {[%clk 0:02:06]} 18. Bxe5 {[%clk 0:02:01]}  f6 {[%clk 0:02:06]} 19. Bh2 {[%clk 0:01:57]}  Nd2 {[%clk 0:01:55]} 20. Rxa8 {[%clk 0:01:43]}  Rxa8 {[%clk 0:01:56]} 21. Rd1 {[%clk 0:01:42]}  Nxb3 {[%clk 0:01:55]} 22. cxd5 {[%clk 0:01:39]}  exd5 {[%clk 0:01:55]} 23. Nc7 {[%clk 0:01:28]}  Ra2 {[%clk 0:01:53]} 24. Bf3 {[%clk 0:01:22]}  Bc2 {[%clk 0:01:50]} 25. Rf1 {[%clk 0:01:12]}  Nd2 {[%clk 0:01:50]} 26. Re1 {[%clk 0:01:03]}  Nxf3+ {[%clk 0:01:35]} 27. gxf3 {[%clk 0:01:04]}  Bb4 {[%clk 0:01:30]} 28. Rf1 {[%clk 0:00:53]}  Bd3 {[%clk 0:01:30]} 29. Rc1 {[%clk 0:00:49]}  Bd2 {[%clk 0:01:20]} 30. Rd1 {[%clk 0:00:47]}  Be2 {[%clk 0:01:19]} 31. Rb1 {[%clk 0:00:44]}  Bxf3 {[%clk 0:01:19]} 32. Bg3 {[%clk 0:00:39]}  Be4 {[%clk 0:01:11]} 33. Rd1 {[%clk 0:00:34]}  Rb2 {[%clk 0:01:00]} 34. Kh2 {[%clk 0:00:32]}  b5 {[%clk 0:00:56]} 35. Ra1 {[%clk 0:00:27]}  Bxe3 {[%clk 0:00:53]} 36. Ra7 {[%clk 0:00:23]}  Bxf2 {[%clk 0:00:50]} 37. Rxb7 {[%clk 0:00:22]}  Bxd4+ {[%clk 0:00:50]} 38. Kh3 {[%clk 0:00:19]}  Bf5# {[%clk 0:00:49]} 0-1


[Site "https://www.chess.com"]

[Event "Titled Tuesday Blitz July 11 Late 2023"]
[White "Luong Phuong Hanh"]
[Black "2KRK1"]
[WhiteFideId "12401013"]
[WhiteElo "2472"]
[BlackElo "2678"]
[Result "0-1"]
[Round "5"]
[TimeControl "180+2"]
[Date "2023.07.11"]
[WhiteClock "0:00:04"]
[BlackClock "0:00:05"]
[Board "71"]

1. d4 {[%clk 0:02:35]}  d6 {[%clk 0:02:59]} 2. Nf3 {[%clk 0:02:24]}  Nf6 {[%clk 0:02:56]} 3. g3 {[%clk 0:02:14]}  g6 {[%clk 0:02:56]} 4. Bg2 {[%clk 0:02:11]}  Bg7 {[%clk 0:02:56]} 5. O-O {[%clk 0:02:10]}  O-O {[%clk 0:02:57]} 6. a4 {[%clk 0:02:09]}  a5 {[%clk 0:02:53]} 7. Re1 {[%clk 0:02:07]}  Bf5 {[%clk 0:02:48]} 8. c3 {[%clk 0:01:59]}  d5 {[%clk 0:02:40]} 9. Nbd2 {[%clk 0:01:43]}  c6 {[%clk 0:02:37]} 10. Nh4 {[%clk 0:01:36]}  Be6 {[%clk 0:02:32]} 11. Qb3 {[%clk 0:01:26]}  Qc7 {[%clk 0:02:23]} 12. Ndf3 {[%clk 0:01:25]}  Ne4 {[%clk 0:02:06]} 13. Ng5 {[%clk 0:01:24]}  Nxg5 {[%clk 0:02:04]} 14. Bxg5 {[%clk 0:01:23]}  h6 {[%clk 0:01:57]} 15. Bf4 {[%clk 0:01:20]}  Qc8 {[%clk 0:01:57]} 16. Nf3 {[%clk 0:01:19]}  Nd7 {[%clk 0:01:58]} 17. Qc2 {[%clk 0:01:17]}  Bf5 {[%clk 0:01:54]} 18. Qd2 {[%clk 0:01:16]}  g5 {[%clk 0:01:39]} 19. Be3 {[%clk 0:01:15]}  f6 {[%clk 0:01:13]} 20. h4 {[%clk 0:01:06]}  Nb6 {[%clk 0:01:02]} 21. b3 {[%clk 0:01:01]}  Be4 {[%clk 0:00:56]} 22. hxg5 {[%clk 0:00:56]}  hxg5 {[%clk 0:00:57]} 23. Nh2 {[%clk 0:00:53]}  Bxg2 {[%clk 0:00:57]} 24. Kxg2 {[%clk 0:00:53]}  Qf5 {[%clk 0:00:51]} 25. Rh1 {[%clk 0:00:52]}  Nc8 {[%clk 0:00:47]} 26. f3 {[%clk 0:00:51]}  Nd6 {[%clk 0:00:44]} 27. Ng4 {[%clk 0:00:49]}  Qg6 {[%clk 0:00:41]} 28. Qd3 {[%clk 0:00:46]}  Qxd3 {[%clk 0:00:35]} 29. exd3 {[%clk 0:00:45]}  Nf5 {[%clk 0:00:35]} 30. Bd2 {[%clk 0:00:42]}  Kf7 {[%clk 0:00:35]} 31. Rae1 {[%clk 0:00:39]}  Rh8 {[%clk 0:00:32]} 32. Nf2 {[%clk 0:00:27]}  Rxh1 {[%clk 0:00:29]} 33. Rxh1 {[%clk 0:00:26]}  Rb8 {[%clk 0:00:28]} 34. Ra1 {[%clk 0:00:19]}  e6 {[%clk 0:00:28]} 35. Ng4 {[%clk 0:00:16]}  b5 {[%clk 0:00:24]} 36. axb5 {[%clk 0:00:16]}  Rxb5 {[%clk 0:00:25]} 37. b4 {[%clk 0:00:10]}  axb4 {[%clk 0:00:24]} 38. Ra7+ {[%clk 0:00:09]}  Kg6 {[%clk 0:00:20]} 39. cxb4 {[%clk 0:00:08]}  Nxd4 {[%clk 0:00:21]} 40. Re7 {[%clk 0:00:07]}  e5 {[%clk 0:00:15]} 41. Bc3 {[%clk 0:00:04]}  Ne2 {[%clk 0:00:12]} 42. Bd2 {[%clk 0:00:04]}  Nd4 {[%clk 0:00:07]} 43. Bc3 {[%clk 0:00:04]}  Nc2 {[%clk 0:00:07]} 44. Re6 {[%clk 0:00:03]}  d4 {[%clk 0:00:04]} 45. Bd2 {[%clk 0:00:02]}  Kf7 {[%clk 0:00:03]} 46. Rd6 {[%clk 0:00:02]}  Nxb4 {[%clk 0:00:03]} 47. Bxb4 {[%clk 0:00:02]}  Rxb4 {[%clk 0:00:03]} 48. Rxc6 {[%clk 0:00:02]}  Rb2+ {[%clk 0:00:03]} 49. Nf2 {[%clk 0:00:02]}  Bf8 {[%clk 0:00:02]} 50. g4 {[%clk 0:00:02]}  Bb4 {[%clk 0:00:01]} 51. Kg3 {[%clk 0:00:02]}  Be1 {[%clk 0:00:01]} 52. Rc7+ {[%clk 0:00:02]}  Kg6 {[%clk 0:00:02]} 53. Kh3 {[%clk 0:00:02]}  Bxf2 {[%clk 0:00:02]} 54. f4 {[%clk 0:00:03]}  gxf4 {[%clk 0:00:02]} 55. Rg7+ {[%clk 0:00:03]}  Kxg7 {[%clk 0:00:01]} 56. g5 {[%clk 0:00:04]}  Bg3 {[%clk 0:00:02]} 57. Kg4 {[%clk 0:00:05]}  fxg5 {[%clk 0:00:02]} 58. Kf5 {[%clk 0:00:06]}  Rc2 {[%clk 0:00:02]} 59. Ke4 {[%clk 0:00:07]}  Rc3 {[%clk 0:00:03]} 60. Kf3 {[%clk 0:00:08]}  Rxd3+ {[%clk 0:00:03]} 61. Kg4 {[%clk 0:00:09]}  Re3 {[%clk 0:00:04]} 62. Kf5 {[%clk 0:00:04]}  d3 {[%clk 0:00:05]} 0-1


[Site "https://www.chess.com"]

[Event "Titled Tuesday Blitz July 11 Late 2023"]
[White "Omelja, Artem"]
[Black "Rubio Tent, Francisco"]
[WhiteFideId "14119846"]
[BlackFideId "2238233"]
[WhiteElo "2643"]
[BlackElo "2463"]
[Result "1-0"]
[Round "5"]
[TimeControl "180+2"]
[Date "2023.07.11"]
[WhiteClock "0:00:04"]
[BlackClock "0:00:00"]
[Board "74"]

1. d4 {[%clk 0:02:56]}  d5 {[%clk 0:02:59]} 2. c4 {[%clk 0:02:52]}  c6 {[%clk 0:02:59]} 3. Nc3 {[%clk 0:02:52]}  Nf6 {[%clk 0:02:59]} 4. e3 {[%clk 0:02:48]}  a6 {[%clk 0:02:55]} 5. Nf3 {[%clk 0:02:48]}  b5 {[%clk 0:02:55]} 6. c5 {[%clk 0:02:40]}  g6 {[%clk 0:02:48]} 7. Be2 {[%clk 0:02:38]}  Bg7 {[%clk 0:02:48]} 8. O-O {[%clk 0:02:38]}  O-O {[%clk 0:02:48]} 9. b4 {[%clk 0:02:31]}  a5 {[%clk 0:02:47]} 10. Qb3 {[%clk 0:02:26]}  axb4 {[%clk 0:02:30]} 11. Qxb4 {[%clk 0:02:25]}  Bg4 {[%clk 0:02:07]} 12. a4 {[%clk 0:02:22]}  Nfd7 {[%clk 0:02:04]} 13. Bd2 {[%clk 0:02:15]}  bxa4 {[%clk 0:02:00]} 14. Rxa4 {[%clk 0:02:14]}  Rxa4 {[%clk 0:01:59]} 15. Nxa4 {[%clk 0:02:15]}  e5 {[%clk 0:01:51]} 16. h3 {[%clk 0:02:00]}  Bxf3 {[%clk 0:01:43]} 17. Bxf3 {[%clk 0:02:01]}  exd4 {[%clk 0:01:22]} 18. exd4 {[%clk 0:02:02]}  Na6 {[%clk 0:01:22]} 19. Qb7 {[%clk 0:01:47]}  Qc8 {[%clk 0:01:22]} 20. Qxc8 {[%clk 0:01:37]}  Rxc8 {[%clk 0:01:23]} 21. Be3 {[%clk 0:01:37]}  Nc7 {[%clk 0:01:13]} 22. Nb6 {[%clk 0:01:05]}  Rd8 {[%clk 0:00:46]} 23. Ra1 {[%clk 0:00:43]}  Nf8 {[%clk 0:00:32]} 24. Be2 {[%clk 0:00:29]}  Nfe6 {[%clk 0:00:30]} 25. Ra4 {[%clk 0:00:28]}  f5 {[%clk 0:00:27]} 26. g3 {[%clk 0:00:26]}  g5 {[%clk 0:00:27]} 27. f4 {[%clk 0:00:19]}  gxf4 {[%clk 0:00:24]} 28. gxf4 {[%clk 0:00:19]}  Bh6 {[%clk 0:00:24]} 29. Ra7 {[%clk 0:00:17]}  Bxf4 {[%clk 0:00:18]} 30. Bxf4 {[%clk 0:00:14]}  Nxf4 {[%clk 0:00:19]} 31. Rxc7 {[%clk 0:00:08]}  Nxe2+ {[%clk 0:00:19]} 32. Kf2 {[%clk 0:00:09]}  Nxd4 {[%clk 0:00:20]} 33. Ke3 {[%clk 0:00:09]}  Nc2+ {[%clk 0:00:10]} 34. Kd2 {[%clk 0:00:04]}  Nb4 {[%clk 0:00:06]} 35. Kc3 {[%clk 0:00:03]}  d4+ {[%clk 0:00:06]} 36. Kb3 {[%clk 0:00:04]}  d3 {[%clk 0:00:07]} 37. Nc4 {[%clk 0:00:03]}  Nc2 {[%clk 0:00:01]} 38. Kc3 {[%clk 0:00:02]}  Ne1 {[%clk 0:00:02]} 39. Rxc6 {[%clk 0:00:02]}  Nf3 {[%clk 0:00:02]} 40. Rd6 {[%clk 0:00:02]}  Rxd6 {[%clk 0:00:02]} 41. cxd6 {[%clk 0:00:01]}  Kf7 {[%clk 0:00:02]} 42. Kxd3 {[%clk 0:00:02]}  Ke6 {[%clk 0:00:01]} 43. Ke3 {[%clk 0:00:03]}  Ng5 {[%clk 0:00:01]} 44. h4 {[%clk 0:00:04]}  Nf7 {[%clk 0:00:00]} 45. Kf4 {[%clk 0:00:04]} 1-0


[Site "https://www.chess.com"]

[Event "Titled Tuesday Blitz July 11 Late 2023"]
[White "profedechess93"]
[Black "SergioMoralesG"]
[WhiteElo "2610"]
[BlackElo "2457"]
[Result "0-1"]
[Round "5"]
[TimeControl "180+2"]
[Date "2023.07.11"]
[WhiteClock "0:00:13"]
[BlackClock "0:00:08"]
[Board "76"]

1. e4 {[%clk 0:03:00]}  c5 {[%clk 0:02:58]} 2. Nf3 {[%clk 0:03:01]}  e6 {[%clk 0:02:58]} 3. d4 {[%clk 0:03:00]}  cxd4 {[%clk 0:02:59]} 4. Nxd4 {[%clk 0:03:00]}  Nc6 {[%clk 0:03:00]} 5. Nc3 {[%clk 0:03:01]}  Qc7 {[%clk 0:03:00]} 6. Ndb5 {[%clk 0:02:59]}  Qb8 {[%clk 0:02:58]} 7. Be3 {[%clk 0:02:59]}  a6 {[%clk 0:02:52]} 8. Bb6 {[%clk 0:02:59]}  axb5 {[%clk 0:02:52]} 9. Nxb5 {[%clk 0:03:00]}  Bb4+ {[%clk 0:02:52]} 10. c3 {[%clk 0:03:01]}  Ba5 {[%clk 0:02:51]} 11. Nc7+ {[%clk 0:03:01]}  Qxc7 {[%clk 0:02:47]} 12. Bxc7 {[%clk 0:03:02]}  Bxc7 {[%clk 0:02:47]} 13. Qg4 {[%clk 0:03:02]}  g6 {[%clk 0:02:41]} 14. Bb5 {[%clk 0:03:02]}  Nf6 {[%clk 0:02:22]} 15. Qf3 {[%clk 0:02:55]}  Ke7 {[%clk 0:02:22]} 16. a4 {[%clk 0:02:53]}  d5 {[%clk 0:01:49]} 17. exd5 {[%clk 0:02:51]}  Nxd5 {[%clk 0:01:50]} 18. O-O {[%clk 0:02:42]}  Bd7 {[%clk 0:01:46]} 19. Rfe1 {[%clk 0:02:40]}  Ne5 {[%clk 0:01:16]} 20. Rxe5 {[%clk 0:01:57]}  Bxe5 {[%clk 0:01:15]} 21. Bxd7 {[%clk 0:01:57]}  Kxd7 {[%clk 0:01:13]} 22. c4 {[%clk 0:01:50]}  Nc7 {[%clk 0:01:00]} 23. Qxf7+ {[%clk 0:01:31]}  Kc6 {[%clk 0:01:00]} 24. Qf3+ {[%clk 0:01:21]}  Kd7 {[%clk 0:00:42]} 25. Qxb7 {[%clk 0:01:20]}  Rhb8 {[%clk 0:00:36]} 26. Rd1+ {[%clk 0:01:16]}  Ke7 {[%clk 0:00:35]} 27. Qc6 {[%clk 0:01:15]}  Rd8 {[%clk 0:00:33]} 28. Qc5+ {[%clk 0:01:07]}  Kf6 {[%clk 0:00:29]} 29. Re1 {[%clk 0:01:03]}  Bd6 {[%clk 0:00:28]} 30. Qd4+ {[%clk 0:00:55]}  e5 {[%clk 0:00:28]} 31. Qe3 {[%clk 0:00:47]}  Ne6 {[%clk 0:00:25]} 32. h4 {[%clk 0:00:42]}  Nd4 {[%clk 0:00:21]} 33. Qh6 {[%clk 0:00:39]}  Rd7 {[%clk 0:00:19]} 34. h5 {[%clk 0:00:30]}  Nf5 {[%clk 0:00:18]} 35. Qc1 {[%clk 0:00:30]}  g5 {[%clk 0:00:17]} 36. b3 {[%clk 0:00:29]}  Bc5 {[%clk 0:00:17]} 37. Qb2 {[%clk 0:00:27]}  Bd4 {[%clk 0:00:16]} 38. Qc2 {[%clk 0:00:27]}  Rad8 {[%clk 0:00:15]} 39. Kh2 {[%clk 0:00:26]}  Bc5 {[%clk 0:00:15]} 40. Qe4 {[%clk 0:00:25]}  Bd4 {[%clk 0:00:09]} 41. g4 {[%clk 0:00:25]}  Nd6 {[%clk 0:00:08]} 42. Qd5 {[%clk 0:00:24]}  Kg7 {[%clk 0:00:06]} 43. Re2 {[%clk 0:00:20]}  Nf7 {[%clk 0:00:06]} 44. Qe4 {[%clk 0:00:20]}  Bc5 {[%clk 0:00:06]} 45. Qf5 {[%clk 0:00:19]}  Rd2 {[%clk 0:00:06]} 46. Kg2 {[%clk 0:00:17]}  Rxe2 {[%clk 0:00:06]} 47. h6+ {[%clk 0:00:14]}  Kg8 {[%clk 0:00:04]} 48. Qf6 {[%clk 0:00:13]}  Rxf2+ {[%clk 0:00:05]} 49. Qxf2 {[%clk 0:00:12]}  Bxf2 {[%clk 0:00:06]} 50. b4 {[%clk 0:00:12]}  Rb8 {[%clk 0:00:07]} 51. c5 {[%clk 0:00:12]}  Rxb4 {[%clk 0:00:08]} 52. c6 {[%clk 0:00:13]}  Rc4 {[%clk 0:00:08]} 0-1


[Site "https://www.chess.com"]

[Event "Titled Tuesday Blitz July 11 Late 2023"]
[White "Veiga, Jose Francisco R P Neves"]
[Black "whiteglovethief"]
[WhiteFideId "1930087"]
[WhiteElo "2606"]
[BlackElo "2456"]
[Result "1-0"]
[Round "5"]
[TimeControl "180+2"]
[Date "2023.07.11"]
[WhiteClock "0:00:20"]
[BlackClock "0:00:13"]
[Board "77"]

1. e4 {[%clk 0:03:00]}  d5 {[%clk 0:03:00]} 2. exd5 {[%clk 0:03:00]}  Qxd5 {[%clk 0:03:00]} 3. c3 {[%clk 0:02:59]}  e5 {[%clk 0:02:58]} 4. d3 {[%clk 0:02:47]}  Nc6 {[%clk 0:02:57]} 5. Nf3 {[%clk 0:02:46]}  Bg4 {[%clk 0:02:56]} 6. Be2 {[%clk 0:02:47]}  O-O-O {[%clk 0:02:55]} 7. Nbd2 {[%clk 0:02:45]}  Nf6 {[%clk 0:02:50]} 8. Qa4 {[%clk 0:02:40]}  Bc5 {[%clk 0:02:36]} 9. O-O {[%clk 0:02:36]}  Rhe8 {[%clk 0:02:29]} 10. Ne4 {[%clk 0:02:34]}  Bxf3 {[%clk 0:02:24]} 11. Bxf3 {[%clk 0:02:28]}  Nxe4 {[%clk 0:02:20]} 12. Bxe4 {[%clk 0:02:26]}  Qd6 {[%clk 0:02:20]} 13. b4 {[%clk 0:02:18]}  Bb6 {[%clk 0:02:19]} 14. Be3 {[%clk 0:02:16]}  g6 {[%clk 0:02:12]} 15. Bxb6 {[%clk 0:02:08]}  cxb6 {[%clk 0:02:07]} 16. Bxc6 {[%clk 0:01:56]}  Qxc6 {[%clk 0:02:08]} 17. b5 {[%clk 0:01:43]}  Qc7 {[%clk 0:02:02]} 18. Qxa7 {[%clk 0:01:40]}  Rxd3 {[%clk 0:02:01]} 19. c4 {[%clk 0:01:10]}  Red8 {[%clk 0:01:48]} 20. h3 {[%clk 0:01:09]}  Qc5 {[%clk 0:01:42]} 21. a4 {[%clk 0:01:05]}  Rc3 {[%clk 0:01:20]} 22. a5 {[%clk 0:01:01]}  Qxc4 {[%clk 0:01:12]} 23. axb6 {[%clk 0:00:47]}  Qd5 {[%clk 0:00:56]} 24. Rfc1 {[%clk 0:00:45]}  Rxc1+ {[%clk 0:00:44]} 25. Rxc1+ {[%clk 0:00:46]}  Kd7 {[%clk 0:00:44]} 26. Rc7+ {[%clk 0:00:44]}  Ke6 {[%clk 0:00:44]} 27. Rxb7 {[%clk 0:00:44]}  Kf6 {[%clk 0:00:36]} 28. Rc7 {[%clk 0:00:27]}  Qd1+ {[%clk 0:00:29]} 29. Kh2 {[%clk 0:00:27]}  Qd5 {[%clk 0:00:25]} 30. b7 {[%clk 0:00:22]}  Qxb5 {[%clk 0:00:20]} 31. Rxf7+ {[%clk 0:00:18]}  Kg5 {[%clk 0:00:20]} 32. b8=Q {[%clk 0:00:19]}  Qxb8 {[%clk 0:00:14]} 33. Qe3+ {[%clk 0:00:19]}  Kh5 {[%clk 0:00:13]} 34. Rxh7# {[%clk 0:00:20]} 1-0


[Site "https://www.chess.com"]

[Event "Titled Tuesday Blitz July 11 Late 2023"]
[White "Jimenez Ruano, Adrian"]
[Black "Ganiev, Roman"]
[WhiteFideId "22276050"]
[BlackFideId "4131452"]
[WhiteElo "2445"]
[BlackElo "2597"]
[Result "0-1"]
[Round "5"]
[TimeControl "180+2"]
[Date "2023.07.11"]
[WhiteClock "0:00:00"]
[BlackClock "0:00:47"]
[Board "79"]

1. Nf3 {[%clk 0:02:55]}  Nf6 {[%clk 0:02:59]} 2. c4 {[%clk 0:02:55]}  e6 {[%clk 0:02:58]} 3. b3 {[%clk 0:02:55]}  b6 {[%clk 0:02:58]} 4. Bb2 {[%clk 0:02:55]}  Bb7 {[%clk 0:02:59]} 5. Nc3 {[%clk 0:02:50]}  Be7 {[%clk 0:02:58]} 6. e3 {[%clk 0:02:47]}  O-O {[%clk 0:02:57]} 7. Be2 {[%clk 0:02:48]}  d6 {[%clk 0:02:58]} 8. O-O {[%clk 0:02:48]}  Nbd7 {[%clk 0:02:58]} 9. Qc2 {[%clk 0:02:49]}  d5 {[%clk 0:02:58]} 10. cxd5 {[%clk 0:02:48]}  Nxd5 {[%clk 0:02:59]} 11. Rac1 {[%clk 0:02:47]}  Rc8 {[%clk 0:02:58]} 12. Nxd5 {[%clk 0:02:39]}  exd5 {[%clk 0:02:58]} 13. d3 {[%clk 0:02:28]}  c5 {[%clk 0:02:58]} 14. e4 {[%clk 0:02:28]}  Bf6 {[%clk 0:02:55]} 15. Bxf6 {[%clk 0:02:05]}  Qxf6 {[%clk 0:02:56]} 16. Rfe1 {[%clk 0:02:05]}  Rfe8 {[%clk 0:02:54]} 17. Bf1 {[%clk 0:02:06]}  Ne5 {[%clk 0:02:48]} 18. Nxe5 {[%clk 0:01:53]}  Qxe5 {[%clk 0:02:48]} 19. Qd2 {[%clk 0:01:48]}  Qd4 {[%clk 0:02:36]} 20. Qf4 {[%clk 0:01:24]}  dxe4 {[%clk 0:02:31]} 21. dxe4 {[%clk 0:01:18]}  Rxe4 {[%clk 0:02:32]} 22. Qf5 {[%clk 0:01:13]}  Rce8 {[%clk 0:02:27]} 23. Rxe4 {[%clk 0:00:45]}  Qxe4 {[%clk 0:02:27]} 24. Qd7 {[%clk 0:00:44]}  Qc6 {[%clk 0:02:27]} 25. Qg4 {[%clk 0:00:44]}  Qe6 {[%clk 0:02:20]} 26. Qg3 {[%clk 0:00:43]}  h6 {[%clk 0:02:13]} 27. h3 {[%clk 0:00:40]}  Qe5 {[%clk 0:02:08]} 28. Qg4 {[%clk 0:00:38]}  Qg5 {[%clk 0:02:02]} 29. Qd7 {[%clk 0:00:38]}  Qe7 {[%clk 0:01:49]} 30. Qg4 {[%clk 0:00:36]}  Rd8 {[%clk 0:01:45]} 31. Qf4 {[%clk 0:00:26]}  Qg5 {[%clk 0:01:45]} 32. Qc7 {[%clk 0:00:22]}  Qd2 {[%clk 0:01:07]} 33. Rc4 {[%clk 0:00:03]}  Ba6 {[%clk 0:00:56]} 34. Rc1 {[%clk 0:00:01]}  Bxf1 {[%clk 0:00:53]} 35. Rxf1 {[%clk 0:00:01]}  Qd7 {[%clk 0:00:54]} 36. Qf4 {[%clk 0:00:01]}  Qd5 {[%clk 0:00:53]} 37. Qh4 {[%clk 0:00:01]}  Rd6 {[%clk 0:00:53]} 38. Re1 {[%clk 0:00:02]}  Rg6 {[%clk 0:00:53]} 39. f3 {[%clk 0:00:01]}  Qxf3 {[%clk 0:00:50]} 40. Qd8+ {[%clk 0:00:01]}  Kh7 {[%clk 0:00:50]} 41. Qd2 {[%clk 0:00:02]}  Qf6 {[%clk 0:00:49]} 42. Re3 {[%clk 0:00:02]}  Qc6 {[%clk 0:00:49]} 43. Qf2 {[%clk 0:00:02]}  b5 {[%clk 0:00:48]} 44. Re2 {[%clk 0:00:02]}  Rf6 {[%clk 0:00:47]} 45. Qe3 {[%clk 0:00:02]}  c4 {[%clk 0:00:46]} 46. bxc4 {[%clk 0:00:02]}  Qxc4 {[%clk 0:00:47]} 47. h4 {[%clk 0:00:00]}  Re6 {[%clk 0:00:47]} 0-1


[Site "https://www.chess.com"]

[Event "Titled Tuesday Blitz July 11 Late 2023"]
[White "Matt, Fabian"]
[Black "Lizak, Peter"]
[WhiteFideId "1623303"]
[BlackFideId "731595"]
[WhiteElo "2441"]
[BlackElo "2585"]
[Result "1-0"]
[Round "5"]
[TimeControl "180+2"]
[Date "2023.07.11"]
[WhiteClock "0:00:16"]
[BlackClock "0:00:00"]
[Board "81"]

1. d4 {[%clk 0:03:00]}  Nf6 {[%clk 0:02:58]} 2. c4 {[%clk 0:03:00]}  c5 {[%clk 0:02:59]} 3. Nf3 {[%clk 0:02:59]}  cxd4 {[%clk 0:02:59]} 4. Nxd4 {[%clk 0:03:00]}  e5 {[%clk 0:02:58]} 5. Nc2 {[%clk 0:02:57]}  d5 {[%clk 0:02:58]} 6. cxd5 {[%clk 0:02:53]}  Qxd5 {[%clk 0:02:59]} 7. Qxd5 {[%clk 0:02:49]}  Nxd5 {[%clk 0:03:00]} 8. g3 {[%clk 0:02:49]}  Nc6 {[%clk 0:02:57]} 9. Bg2 {[%clk 0:02:50]}  Ndb4 {[%clk 0:02:57]} 10. Nxb4 {[%clk 0:02:44]}  Nxb4 {[%clk 0:02:57]} 11. Na3 {[%clk 0:02:44]}  Rb8 {[%clk 0:02:38]} 12. Be3 {[%clk 0:02:40]}  a6 {[%clk 0:02:07]} 13. O-O {[%clk 0:02:34]}  Be6 {[%clk 0:02:00]} 14. Rfc1 {[%clk 0:02:18]}  Bd6 {[%clk 0:01:59]} 15. Ba7 {[%clk 0:02:10]}  Ra8 {[%clk 0:01:57]} 16. Bc5 {[%clk 0:02:09]}  Bxc5 {[%clk 0:01:46]} 17. Rxc5 {[%clk 0:02:10]}  O-O {[%clk 0:01:42]} 18. Rxe5 {[%clk 0:02:02]}  Rab8 {[%clk 0:01:33]} 19. b3 {[%clk 0:01:56]}  b5 {[%clk 0:01:30]} 20. Rc5 {[%clk 0:01:44]}  Rfc8 {[%clk 0:01:28]} 21. Rxc8+ {[%clk 0:01:26]}  Rxc8 {[%clk 0:01:27]} 22. Be4 {[%clk 0:01:15]}  Bh3 {[%clk 0:01:20]} 23. f4 {[%clk 0:01:09]}  f5 {[%clk 0:00:59]} 24. Bf3 {[%clk 0:01:07]}  h6 {[%clk 0:00:59]} 25. Kf2 {[%clk 0:01:06]}  g5 {[%clk 0:00:59]} 26. Rd1 {[%clk 0:00:47]}  g4 {[%clk 0:00:51]} 27. Bh1 {[%clk 0:00:45]}  Nxa2 {[%clk 0:00:46]} 28. Rd6 {[%clk 0:00:44]}  Rc1 {[%clk 0:00:44]} 29. Bd5+ {[%clk 0:00:38]}  Kf8 {[%clk 0:00:37]} 30. Rxa6 {[%clk 0:00:38]}  Nb4 {[%clk 0:00:36]} 31. Ra8+ {[%clk 0:00:38]}  Ke7 {[%clk 0:00:35]} 32. Bg2 {[%clk 0:00:37]}  Rc3 {[%clk 0:00:07]} 33. Nxb5 {[%clk 0:00:30]}  Rxb3 {[%clk 0:00:07]} 34. Nd4 {[%clk 0:00:29]}  Rb2 {[%clk 0:00:04]} 35. Bxh3 {[%clk 0:00:24]}  gxh3 {[%clk 0:00:02]} 36. Nxf5+ {[%clk 0:00:24]}  Kf6 {[%clk 0:00:03]} 37. Nxh6 {[%clk 0:00:22]}  Nd3+ {[%clk 0:00:02]} 38. Ke3 {[%clk 0:00:19]}  Nc1 {[%clk 0:00:02]} 39. Ng4+ {[%clk 0:00:19]}  Kf5 {[%clk 0:00:03]} 40. Ne5 {[%clk 0:00:19]}  Rxe2+ {[%clk 0:00:02]} 41. Kf3 {[%clk 0:00:19]}  Rxh2 {[%clk 0:00:00]} 42. Ra6 {[%clk 0:00:16]} 1-0


[Site "https://www.chess.com"]